{"text_format":"3","workbook":"xlsx","n_sheets":5,"sheets":["Forklift - Material Handling","LV - HV","Trailer","Motorbike","Address list"],"read":"whole","date_system":"1900"}

{"sheet":"Forklift - Material Handling","index":0,"n_rows":36,"n_cols":10,"rows_kept":36,"merged":[[0,0,0,9],[1,0,2,0],[1,1,2,1],[1,2,2,2],[1,3,2,3]]}
["RFQ 23/24/48/Managed maintenance of SAPO owned light and heavy commercial vehicles/MH\nAnnexure F - Pricing Schedule"]
["Category","Region","Vehicle Description","Total No. of Veh","Monthly Managed Maintenance Fee per Month per vehicle = UNIT COST (EACH) (formula in column G will calculate the total for all vehicles","Total Cost per month (all vehicles) excl VAT","VAT","Total per Month incl VAT","Total Cost Year 1, VAT incl","Coll / Del Fee per vehicle (if used)"]
[{"$nulls":4},"R","R","R","R","R","R"]
["Forklift","Central","Mima TK30-36 3Ton Closed Cab Forklift",2,null,{"$f":"E4*D4","v":0},{"$f":"F4*15%","v":0},{"$f":"G4+F4","v":0},{"$f":"H4*12","v":0}]
[null,null,"Mima TK30-36 3Ton Forklift",1,null,{"$f":"E5*D5","v":0},{"$f":"F5*15%","v":0},{"$f":"G5+F5","v":0},{"$f":"H5*12","v":0}]
[null,"Central Total",null,{"$f":"SUM(D4:D5)","v":3},null,{"$f":"SUM(F4:F5)","v":0},{"$f":"SUM(G4:G5)","v":0},{"$f":"SUM(H4:H5)","v":0},{"$f":"SUM(I4:I5)","v":0}]
[null,"Eastern Cape","Mima TK30-36 3Ton Closed Cab Forklift",1,null,{"$f":"E7*D7","v":0},{"$f":"F7*15%","v":0},{"$f":"G7+F7","v":0},{"$f":"H7*12","v":0}]
[null,null,"Mima TK30-36 3Ton Forklift",1,null,0,{"$f":"F8*15%","v":0},{"$f":"G8+F8","v":0},0]
[null,null,"Mima TK35-36 3.5Ton Forklift",1,null,0,{"$f":"F9*15%","v":0},{"$f":"G9+F9","v":0},0]
[null,null,"SOCMA FD30T 3Ton Closed Cab Forklift",1,null,0,{"$f":"F10*15%","v":0},{"$f":"G10+F10","v":0},0]
[null,"Eastern Cape Total",null,{"$f":"SUM(D7:D10)","v":4},null,{"$f":"SUM(F7:F10)","v":0},{"$f":"SUM(G7:G10)","v":0},{"$f":"SUM(H7:H10)","v":0},{"$f":"SUM(I7:I10)","v":0}]
[null,"Gauteng","Mima MFZ 16-63 Reich Truck Forklift",2,null,{"$f":"E12*D12","v":0},{"$f":"F12*15%","v":0},{"$f":"G12+F12","v":0},0]
[null,null,"Mima TK25-36 2.5Ton Forklift",7,null,0,0,{"$f":"G13+F13","v":0},0]
[null,null,"Mima TK30-36 3Ton Closed Cab Forklift",1,null,0,0,{"$f":"G14+F14","v":0},0]
[null,null,"Mima TK30-36 3Ton Forklift",2,null,0,0,{"$f":"G15+F15","v":0},0]
[null,null,"Mima TK35-36 3.5Ton Forklift",3,null,0,0,{"$f":"G16+F16","v":0},0]
[null,"Gauteng Total",null,{"$f":"SUM(D12:D16)","v":15},null,{"$f":"SUM(F12:F16)","v":0},{"$f":"SUM(G12:G16)","v":0},{"$f":"SUM(H12:H16)","v":0},{"$f":"SUM(I12:I16)","v":0}]
[null,"KZN","Mima TK25-36 2.5Ton Forklift",3,null,{"$f":"E18*D18","v":0},0,{"$f":"G18+F18","v":0},0]
[null,null,"Mima TK30-36 3Ton Closed Cab Forklift",1,null,0,0,{"$f":"G19+F19","v":0},0]
[null,null,"Mima TK35-36 3.5Ton Forklift",1,null,0,0,{"$f":"G20+F20","v":0},0]
[null,"KZN Total",null,{"$f":"SUM(D18:D20)","v":5},null,{"$f":"SUM(F18:F20)","v":0},{"$f":"SUM(G18:G20)","v":0},{"$f":"SUM(H18:H20)","v":0},{"$f":"SUM(I18:I20)","v":0}]
[null,"Northern Region","Mima TK25-36 2.5Ton Forklift",1,null,{"$f":"E22*D22","v":0},0,{"$f":"G22+F22","v":0},0]
[null,null,"Mima TK30-36 3Ton Forklift",2,null,0,0,{"$f":"G23+F23","v":0},0]
[null,"Northern Region Total",null,{"$f":"SUM(D22:D23)","v":3},null,{"$f":"SUM(F22:F23)","v":0},{"$f":"SUM(G22:G23)","v":0},0,{"$f":"SUM(I22:I23)","v":0}]
[null,"Western Cape","Mima TK25-36 2.5Ton Forklift",5,null,{"$f":"E25*D25","v":0},0,{"$f":"G25+F25","v":0},0]
[null,null,"Mima TK30-36 3Ton Closed Cab Forklift",1,null,0,0,{"$f":"G26+F26","v":0},0]
[null,null,"Mima TK30-36 3Ton Forklift",3,null,0,0,{"$f":"G27+F27","v":0},0]
[null,null,"Mima TK35-36 3.5Ton Forklift",1,null,0,0,{"$f":"G28+F28","v":0},0]
[null,null,"SOCMA FD30T 3Ton Closed Cab Forklift",1,null,0,0,{"$f":"G29+F29","v":0},0]
[null,"Western Cape Total",null,{"$f":"SUM(D25:D29)","v":11},null,{"$f":"SUM(F25:F29)","v":0},{"$f":"SUM(G25:G29)","v":0},{"$f":"SUM(H25:H29)","v":0},{"$f":"SUM(I25:I29)","v":0}]
["Forklift Total",null,null,{"$f":"SUM(D30,D24,D21,D17,D11,D6)","v":41},null,{"$f":"SUM(F30,F24,F21,F17,F11,F6)","v":0},{"$f":"SUM(G30,G24,G21,G17,G11,G6)","v":0},{"$f":"SUM(H30,H24,H21,H17,H11,H6)","v":0},{"$f":"SUM(I30,I24,I21,I17,I11,I6)","v":0}]
["Material handling/HV","Gauteng","Nissan Tow Tractor",1,null,{"$f":"E32*D32","v":0},{"$f":"F32*15%","v":0},{"$f":"G32+F32","v":0},{"$f":"H32*12","v":0}]
["Material handling/HV Total",null,null,{"$f":"SUM(D32)","v":1},null,{"$f":"SUM(F32)","v":0},{"$f":"SUM(G32)","v":0},{"$f":"SUM(H32)","v":0},{"$f":"SUM(I32)","v":0}]
["Total",null,null,{"$f":"D33+D31","v":42},null,{"$f":"F33+F31","v":0},{"$f":"G33+G31","v":0},{"$f":"H33+H31","v":0},{"$f":"I33+I31","v":0}]
["Please complete every column - please do not leave blank.  If it is NO Charge put a 0"]
["* Monthly cost must be all inclusive, if any cost not included will be incomplete pricing."]

{"sheet":"LV - HV","index":1,"n_rows":18,"n_cols":10,"rows_kept":18,"merged":[[0,0,0,9],[2,0,3,0],[2,1,3,1],[2,2,3,2],[2,3,3,3]]}
["RFQ 23/24/48/Managed maintenance of SAPO owned light and heavy commercial vehicles/MH\nAnnexure F - Pricing Schedule"]
[]
["Category","Region","Vehicle Description","Total No. of Veh","Monthly Managed Maintenance Fee per Month per vehicle = UNIT COST (EACH) (formula in column G will calculate the total for all vehicles","Total Cost per month (all vehicles)","VAT","Total per Month incl VAT","Total Cost Year 1, VAT incl","Coll / Del Fee per vehicle"]
[{"$nulls":4},"R","R","R","R","R","R"]
["Light vehicle","Gauteng","Ford Bantum 1.3",1,null,{"$f":"E5*D5","v":0},{"$f":"F5*15%","v":0},{"$f":"G5+F5","v":0},{"$f":"H5*12","v":0}]
["Light vehicle Total",null,null,{"$f":"SUM(D5)","v":1},null,{"$f":"SUM(F5)","v":0},{"$f":"SUM(G5)","v":0},0,{"$f":"SUM(I5)","v":0}]
["Panelvan","Central","MERCEDES SPRINTER 416 CDI PV",1,null,{"$f":"E7*D7","v":0},{"$f":"F7*15%","v":0},{"$f":"G7+F7","v":0},{"$f":"H7*12","v":0}]
[null,null,"VW Crafter 50 ",1,null,0,0,{"$f":"G8+F8","v":0},0]
[null,"Central Total",null,{"$f":"SUM(D7:D8)","v":2},null,{"$f":"SUM(F7:F8)","v":0},{"$f":"SUM(G7:G8)","v":0},0,{"$f":"SUM(I7:I8)","v":0}]
[null,"Gauteng","MERCEDES SPRINTER 416 CDI PV",1,null,{"$f":"E10*D10","v":0},0,{"$f":"G10+F10","v":0},0]
[null,null,"VW Crafter 50 ",2,null,0,0,{"$f":"G11+F11","v":0},0]
[null,"Gauteng Total",null,{"$f":"SUM(D10:D11)","v":3},null,{"$f":"SUM(F10:F11)","v":0},null,null,{"$f":"SUM(I10:I11)","v":0}]
[null,"KZN","VW Crafter 50 ",1,null,{"$f":"E13*D13","v":0},0,{"$f":"G13+F13","v":0},0]
[null,"KZN Total",null,{"$f":"SUM(D13)","v":1},{"$f":"SUM(E13)","v":0},{"$f":"SUM(F13)","v":0},{"$f":"SUM(G13)","v":0},0,{"$f":"SUM(I13)","v":0}]
["Panelvan Total",null,null,{"$f":"D9+D12+D14","v":6},null,{"$f":"F9+F12+F14","v":0},{"$f":"G9+G12+G14","v":0},0,{"$f":"I9+I12+I14","v":0}]
["TOTAL LIGHT/HEAVY VEHICLES",null,null,{"$f":"SUM(D15,D6)","v":7},null,{"$f":"SUM(F15,F6)","v":0},{"$f":"SUM(G15,G6)","v":0},0,{"$f":"SUM(I15,I6)","v":0}]
["Please complete every column - please do not leave blank.  If it is NO Charge put a 0"]
["* Monthly cost must be all inclusive, if any cost not included will be incomplete pricing."]

{"sheet":"Trailer","index":2,"n_rows":22,"n_cols":10,"rows_kept":22,"merged":[[0,0,0,9],[2,0,3,0],[2,1,3,1],[2,2,3,2],[2,3,3,3]]}
["RFQ 23/24/48/Managed maintenance of SAPO owned light and heavy commercial vehicles/MH\nAnnexure F - Pricing Schedule"]
[]
["Category","Region","Vehicle Description","Total No. of Veh","Monthly Managed Maintenance Fee per Month per vehicle","Total Cost per month (all vehicles)","VAT","Total per Month incl VAT","Total Cost Year 1, VAT incl","Coll / Del Fee per vehicle"]
[{"$nulls":4},"R","R","R","R","R","R"]
["Trailer","Central","Springbok Fuel Storage 500L Trailer",1,null,{"$f":"E5*D5","v":0},{"$f":"F5*15%","v":0},{"$f":"F5+G5","v":{"v":0,"d":"0.00"}},{"$f":"H5*12","v":{"v":0,"d":"0.00"}}]
[null,"Central Total",null,{"$f":"SUM(D5)","v":1},null,{"$f":"SUM(F5)","v":0},{"$f":"SUM(G5)","v":0},{"v":0,"d":"0.00"},{"$f":"SUM(I5)","v":{"v":0,"d":"0.00"}}]
[null,"Eastern Cape","Springbok Fuel Storage 500L Trailer",2,null,{"$f":"E7*D7","v":0},{"$f":"F7*15%","v":0},{"$f":"F7+G7","v":{"v":0,"d":"0.00"}},{"$f":"H7*12","v":{"v":0,"d":"0.00"}}]
[null,null,"Venter Trailer",6,null,{"$f":"E8*D8","v":0},0,{"v":0,"d":"0.00"},{"v":0,"d":"0.00"}]
[null,"Eastern Cape Total",null,{"$f":"SUM(D7:D8)","v":8},null,{"$f":"SUM(F7:F8)","v":0},{"$f":"SUM(G7:G8)","v":0},{"v":0,"d":"0.00"},{"$f":"SUM(I7:I8)","v":{"v":0,"d":"0.00"}}]
[null,"Gauteng"," 7M TRAILER",1,null,{"$f":"E10*D10","v":0},0,{"v":0,"d":"0.00"},{"v":0,"d":"0.00"}]
[null,null,"2M Sportrailer Lazy Lowder1 Trailer",1,null,{"$f":"E11*D11","v":0},0,{"v":0,"d":"0.00"},{"v":0,"d":"0.00"}]
[null,null,"Springbok Fuel Storage 500L Trailer",3,null,{"$f":"E12*D12","v":0},0,{"v":0,"d":"0.00"},{"v":0,"d":"0.00"}]
[null,null,"Trailer Mecca Bicycle Trailer",3,null,{"$f":"E13*D13","v":0},0,{"v":0,"d":"0.00"},{"v":0,"d":"0.00"}]
[null,null,"Venter Trailer",1,null,{"$f":"E14*D14","v":0},0,{"v":0,"d":"0.00"},{"v":0,"d":"0.00"}]
[null,"Gauteng Total",null,{"$f":"SUM(D10:D14)","v":9},null,{"$f":"SUM(F10:F14)","v":0},{"$f":"SUM(G10:G14)","v":0},{"v":0,"d":"0.00"},{"$f":"SUM(I10:I14)","v":{"v":0,"d":"0.00"}}]
[null,"Western Cape","Springbok Fuel Storage 500L Trailer",2,null,{"$f":"E16*D16","v":0},0,{"v":0,"d":"0.00"},{"v":0,"d":"0.00"}]
[null,null,"Trailer Mecca Bicycle Trailer",6,null,{"$f":"E17*D17","v":0},0,{"v":0,"d":"0.00"},{"v":0,"d":"0.00"}]
[null,null,"Venter Trailer",1,null,{"$f":"E18*D18","v":0},0,{"v":0,"d":"0.00"},{"v":0,"d":"0.00"}]
[null,"Western Cape Total",null,{"$f":"SUM(D16:D18)","v":9},null,{"$f":"SUM(F16:F18)","v":0},{"$f":"SUM(G16:G18)","v":0},{"v":0,"d":"0.00"},{"$f":"SUM(I16:I18)","v":{"v":0,"d":"0.00"}}]
["Trailer Total",null,null,{"$f":"SUM(D19,D15,D9,D6)","v":27},null,{"$f":"SUM(F19,F15,F9,F6)","v":0},{"$f":"SUM(G19,G15,G9,G6)","v":0},{"v":0,"d":"0.00"},{"$f":"SUM(I19,I15,I9,I6)","v":{"v":0,"d":"0.00"}}]
["Please complete every column - please do not leave blank.  If it is NO Charge put a 0"]
["* Monthly cost must be all inclusive, if any cost not included will be incomplete pricing."]

{"sheet":"Motorbike","index":3,"n_rows":15,"n_cols":10,"rows_kept":15,"merged":[[0,0,0,9],[2,0,3,0],[2,1,3,1],[2,2,3,2],[2,3,3,3]]}
["RFQ 23/24/48/Managed maintenance of SAPO owned light and heavy commercial vehicles/MH\nAnnexure F - Pricing Schedule"]
[]
["Category","Region","Vehicle Description","Total No. of Veh","Monthly Managed Maintenance Fee per Month per vehicle","Total Cost per month (all vehicles)","VAT","Total per Month incl VAT","Total Cost Year 1, VAT incl","Coll / Del Fee per vehicle"]
[{"$nulls":4},"R","R","R","R","R","R"]
["Motorbike","Gauteng","Big Boy Scooter 150RS Adventure",25,null,{"$f":"E5*D5","v":0},{"$f":"F5*15%","v":0},{"$f":"G5+F5","v":0},{"$f":"H5*12","v":0}]
[null,"Gauteng Total",null,{"$f":"SUM(D5)","v":25},null,{"$f":"SUM(F5)","v":0},0,0,0]
[null,"Western Cape","Big Boy Scooter 150RS Adventure",7,null,{"$f":"E7*D7","v":0},{"$f":"F7*15%","v":0},{"$f":"G7+F7","v":0},{"$f":"H7*12","v":0}]
[null,"Western Cape Total",null,{"$f":"SUM(D7)","v":7},null,{"$f":"SUM(F7)","v":0},0,0,0]
["Motorbike Total",null,null,32,null,{"$f":"SUM(F6+F8)","v":0},{"$f":"SUM(G6+G8)","v":0},0,0]
["Please complete every column - please do not leave blank.  If it is NO Charge put a 0"]
["* Monthly cost must be all inclusive, if any cost not included will be incomplete pricing."]
[]
[]
[]
[{"$nulls":8},{"$f":"I9+Trailer!I20+'LV - HV'!I16+'Forklift - Material Handling'!I34","v":{"v":0,"d":"0.00"}}]

{"sheet":"Address list","index":4,"n_rows":101,"n_cols":7,"rows_kept":101,"merged":[[0,0,0,6]]}
["RFQ 23/24/48/Managed maintenance of SAPO owned light and heavy commercial vehicles/MH\nANNEXURE A"]
["Type","Region","Make and Model","Place/Business Unit of Allocation","Address/Branch Site where Vehicle Stationed","Total","APPROX AGE"]
["Forklift","Central","Mima TK30-36 3Ton Closed Cab Forklift","Bloemfontein","90 Fritz Stockenstroom St, East End Bloem",1,"4 years"]
[null,null,"Mima TK30-36 3Ton Closed Cab Forklift","Mafikeng","Cnr Carrington & Marting Str Mafikeng",1,"4 years"]
[null,null,"Mima TK30-36 3Ton Forklift","Bloemfontein","Bloem mark Fresh Produce Market; Bloemfontein; 8300.",1,"4 years"]
[null,"Central Total",{"$nulls":3},3]
[null,"Eastern Cape","Mima TK30-36 3Ton Closed Cab Forklift","Port Elizabeth","259 Govan Mbeki Ave; PE 6000",1,"4 years"]
[null,null,"Mima TK30-36 3Ton Forklift","Port Elizabeth","110 Patterson Road , North End , Port Elizabeth",1,"4 years"]
[null,null,"Mima TK35-36 3.5Ton Forklift","Port Elizabeth","110 Patterson Rd, North End, PE",1,"4 years"]
[null,null,"SOCMA FD30T 3Ton Closed Cab Forklift","East London","Upper Western Ave Cambridge Goods Shed,EL",1,"4 years"]
[null,"Eastern Cape Total",{"$nulls":3},4]
[null,"Gauteng","Mima MFZ 16-63 Reich Truck Forklift","Silverton","SCM Morelata street silverton",2,"4 years"]
[null,null,"Mima TK25-36 2.5Ton Forklift","Tshwane","23 Potigieter st ,Pretoria Tshwane",2,"4 years"]
[null,null,"Mima TK25-36 2.5Ton Forklift","Witspos","Cnr Northern Parkway & Roeland str Ormonde JHB , WITS",5,"4 years"]
[null,null,"Mima TK30-36 3Ton Closed Cab Forklift","JIMC","JHB Mail - OR Tambo Airport ",1,"4 years"]
[null,null,"Mima TK30-36 3Ton Forklift","Jetpark","JETPARK",1,"4 years"]
[null,null,"Mima TK30-36 3Ton Forklift","Silverton","SCM Morelata street silverton",1,"4 years"]
[null,null,"Mima TK35-36 3.5Ton Forklift","Germiston","8 Rudo Nel Str, Jet Park - Moved to Germiston",1,"4 years"]
[null,null,"Mima TK35-36 3.5Ton Forklift","Tshwane","23 Potigieter st ,Pretoria Tshwane",1,"4 years"]
[null,null,"Mima TK35-36 3.5Ton Forklift","Witspos","Cnr Northern Parkway & Roeland str Ormonde JHB , WITS",1,"4 years"]
[null,"Gauteng Total",{"$nulls":3},15]
[null,"KZN","Mima TK25-36 2.5Ton Forklift","Durban","95 NMR Avenue Durban 4001.",2,"4 years"]
[null,null,"Mima TK25-36 2.5Ton Forklift",null,"95 NMR Avenue Durban 4001. ",1,"4 years"]
[null,null,"Mima TK30-36 3Ton Closed Cab Forklift","Durban","95 NMR Avenue Durban 4001.",1,"4 years"]
[null,null,"Mima TK35-36 3.5Ton Forklift","Durban","95 NMR Avenue Durban 4001.",1,"4 years"]
[null,"KZN Total",{"$nulls":3},5]
[null,"Northern Region","Mima TK25-36 2.5Ton Forklift","Nelspruit","No 1 Logo street Nelspruit Hub",1,"4 years"]
[null,null,"Mima TK30-36 3Ton Forklift","Makhado"," Grobler & Rissik street, MAKHADO 0920 Makhado",1,"4 years"]
[null,null,"Mima TK30-36 3Ton Forklift","Polokwane","9 Cobalt Str, Superbia Polokwane",1,"4 years"]
[null,"Northern Region Total",{"$nulls":3},3]
[null,"Western Cape","Mima TK25-36 2.5Ton Forklift","Cape Town","Cnr Mail Showgrouns Cape Mail",5,"4 years"]
[null,null,"Mima TK30-36 3Ton Closed Cab Forklift","Cape Town","Cnr Mail Showgrouns Cape Mail",1,"4 years"]
[null,null,"Mima TK30-36 3Ton Forklift","George","CNR Laing & Nywerheid Str, George Ind.",1,"4 years"]
[null,null,"Mima TK30-36 3Ton Forklift","Kimberly","10 Edison street Ashburman  Kimberley",1,"4 years"]
[null,null,"Mima TK30-36 3Ton Forklift","Upington","27 Tin Str, Industrial Area, Upington",1,"4 years"]
[null,null,"Mima TK35-36 3.5Ton Forklift","Cape Town","cape mail good wood cpt 8003",1,"4 years"]
[null,null,"SOCMA FD30T 3Ton Closed Cab Forklift","Cape Town","Cnr Mail Showgrouns Cape Mail",1,"4 years"]
[null,"Western Cape Total",{"$nulls":3},11]
["Forklift Total",{"$nulls":4},41]
["Material handling/HV","Gauteng","Nissan Tow Tractor","Johannesburg","Johannesburg International Mail Centre, OR Tambo Airport",1,"10 Years"]
[null,"Gauteng Total",{"$nulls":3},1]
["Material handling/HV Total",{"$nulls":4},1]
["Light vehicle","Gauteng","Ford Bantum 1.3","Pretoria","272 Madiba Street, General Post Office, Church Square",1,"Older than 5 years"]
[null,"Gauteng Total",{"$nulls":3},1]
["Light vehicle Total",{"$nulls":4},1]
["Motorbike","Gauteng","Big Boy Scooter 150RS Adventure","Alex Depot","CRN BRIERS & ROUILLARD STREETS ORMONDE ",1,"2 years"]
[null,null,"Big Boy Scooter 150RS Adventure","Benoni Depot","CRN BRIERS & ROUILLARD STREETS ORMONDE ",1,"2 years"]
[null,null,"Big Boy Scooter 150RS Adventure","Booysen Depot","CRN BRIERS & ROUILLARD STREETS ORMONDE ",1,"2 years"]
[null,null,"Big Boy Scooter 150RS Adventure","Brakpan Depot","CRN BRIERS & ROUILLARD STREETS ORMONDE ",1,"2 years"]
[null,null,"Big Boy Scooter 150RS Adventure","Carltonville Depot","CRN BRIERS & ROUILLARD STREETS ORMONDE ",1,"2 years"]
[null,null,"Big Boy Scooter 150RS Adventure","Krugersdorp Depot","CRN BRIERS & ROUILLARD STREETS ORMONDE ",2,"2 years"]
[null,null,"Big Boy Scooter 150RS Adventure","Mayorton Depot","CRN BRIERS & ROUILLARD STREETS ORMONDE ",1,"2 years"]
[null,null,"Big Boy Scooter 150RS Adventure","Rooseveltpark Depot","CRN BRIERS & ROUILLARD STREETS ORMONDE ",2,"2 years"]
[null,null,"Big Boy Scooter 150RS Adventure","Sohanguve Depot","23 Kgosi Mampuru street",1,"2 years"]
[null,null,"Big Boy Scooter 150RS Adventure","Speed Services","23 Kgosi Mampuru street",9,"2 years"]
[null,null,"Big Boy Scooter 150RS Adventure","Temba Depot","23 Kgosi Mampuru street",1,"2 years"]
[null,null,"Big Boy Scooter 150RS Adventure","Witspos Logistics","CRN BRIERS & ROUILLARD STREETS ORMONDE ",4,"2 years"]
[null,"Gauteng Total",{"$nulls":3},25,"2 years"]
[null,"Western Cape","Big Boy Scooter 150RS Adventure","Constantia Depot","Parow Depot, 171 Voortrekker road Parow",1,"2 years"]
[null,null,"Big Boy Scooter 150RS Adventure","George Area ","Parow Depot, 171 Voortrekker road Parow",2,"2 years"]
[null,null,"Big Boy Scooter 150RS Adventure","Malmesbury Depot","Parow Depot, 171 Voortrekker road Parow",1,"2 years"]
[null,null,"Big Boy Scooter 150RS Adventure","Matroosfontein Depot","Parow Depot, 171 Voortrekker road Parow",1,"2 years"]
[null,null,"Big Boy Scooter 150RS Adventure","Parrow Depot","Parow Depot, 171 Voortrekker road Parow",1,"2 years"]
[null,null,"Big Boy Scooter 150RS Adventure","Retreat Depot","Parow Depot, 171 Voortrekker road Parow",1,"2 years"]
[null,"Western Cape Total",{"$nulls":3},7]
["Motorbike Total",{"$nulls":4},32]
["Panelvan","Central","MERCEDES SPRINTER 416 CDI PV","Bloemfontein","Bloemmark Fresh Produce Market ",1,"10 years"]
[null,null,"VW Crafter 50 ","Bloemfontein","Bloemmark Fresh Produce Market ",1,"10 years"]
[null,"Central Total",{"$nulls":3},2]
[null,"Gauteng","MERCEDES SPRINTER 416 CDI PV","Pretoria","23 Kgosi Mampuru street",1,"10 years"]
[null,null,"VW Crafter 50 ","Pretoria","23 Kgosi Mampuru street",2,"10 years"]
[null,"Gauteng Total",{"$nulls":3},3]
[null,"KZN","VW Crafter 50 ","Durban","95 Masabalala Yengwa Avenue ",1,"10 years"]
[null,"KZN Total",{"$nulls":3},1]
["Panelvan Total",{"$nulls":4},6]
["Trailer","Central","Springbok Fuel Storage 500L Trailer","Bloemfontein","90 Fritzstockenstroom Str",1,"10 years"]
[null,"Central Total",{"$nulls":3},1]
[null,"Eastern Cape","Springbok Fuel Storage 500L Trailer","East London","Old KWT Road Wilsonia   Dagama",1,"10 years"]
[null,null,"Springbok Fuel Storage 500L Trailer","Port Elizabeth","259 Govan Mbeki Avenue ",1,"10 years"]
[null,null,"Venter Trailer","East London","Old KWT Road Wilsonia   Dagama",4,"10 years"]
[null,null,"Venter Trailer","Port Elizabeth","259 Govan Mbeki Avenue ",2,"10 years"]
[null,"Eastern Cape Total",{"$nulls":3},8]
[null,"Gauteng"," 7M TRAILER","Pretoria","23 Kgosi Mampuru street",1,"10 years"]
[null,null,"2M Sportrailer Lazy Lowder1 Trailer","Pretoria","23 Kgosi Mampuru street",1,"10 years"]
[null,null,"Springbok Fuel Storage 500L Trailer","Johannesburg","CRN BRIERS & ROUILLARD STREETS ORMONDE ",2,"10 years"]
[null,null,"Springbok Fuel Storage 500L Trailer","Pretoria","23 Kgosi Mampuru street",1,"10 years"]
[null,null,"Trailer Mecca Bicycle Trailer","Johannesburg","CRN BRIERS & ROUILLARD STREETS ORMONDE ",3,"10 years"]
[null,null,"Venter Trailer","Pretoria","23 Kgosi Mampuru street",1,"10 years"]
[null,"Gauteng Total",{"$nulls":3},9]
[null,"Western Cape","Springbok Fuel Storage 500L Trailer","Cape Town","c/o Show Ground & Mail RD Epping ",1,"10 years"]
[null,null,"Springbok Fuel Storage 500L Trailer","Kimberley","10 Edison Street/Warehouse No 10. Ashburnham",1,"10 years"]
[null,null,"Trailer Mecca Bicycle Trailer","Cape Town","c/o Esso str &Montague drive Montague Gardens",1,"10 years"]
[null,null,"Trailer Mecca Bicycle Trailer",null,"Parow Depot, 171 Voortrekker road Parow",1,"10 years"]
[null,null,"Trailer Mecca Bicycle Trailer","George","c/o York & St. Johns",1,"10 years"]
[null,null,"Trailer Mecca Bicycle Trailer","KuilsRivier","Kuils river depot, 28 Industries street",1,"10 years"]
[null,null,"Trailer Mecca Bicycle Trailer","Oudtshoorn","Oudsthoorn Depot, 50Kerk STR",1,"10 years"]
[null,null,"Trailer Mecca Bicycle Trailer","Somerset West","Somerset West Depot, c/o Andries pretorius & Ker Str. ",1,"10 years"]
[null,null,"Venter Trailer","Upington","Tin Str; Upington Industria",1,"10 years"]
[null,"Western Cape Total",{"$nulls":3},9]
["Trailer Total",{"$nulls":4},27]
["Total Vehicles",{"$nulls":4},108]